bitfinex/quotes_ETHUSD_20250322
["timestamp","ask_amount","ask_price","bid_price","bid_amount"]
[1742646124092,0.1184762,1998.1,1998.0,27.82435672]
[1742646127101,0.1184762,1998.1,1998.0,32.82935672]
[1742646128068,0.1184762,1998.1,1998.0,27.82435672]
[1742646128296,0.1184762,1998.1,1998.0,31.10730139]
[1742646135206,0.1184762,1998.1,1998.0,30.32740139]
[1742646139819,0.1184762,1998.1,1998.0,30.4309726]
[1742646142419,5.1232262,1998.1,1998.0,35.0639726]
[1742646143720,5.1232262,1998.1,1998.0,26.77809385]
[1742646144022,5.1232262,1998.1,1998.0,31.41109385]
[1742646144314,0.1184762,1998.1,1998.0,31.41109385]
[1742646144623,5.1232262,1998.1,1998.0,31.41009385]
[1742646145787,5.9455262,1998.1,1998.0,31.41009385]
[1742646146117,5.9455262,1998.1,1998.0,26.77809385]
[1742646146323,5.9455262,1998.1,1998.0,31.41409385]
[1742646149819,8.23487852,1998.1,1998.0,31.41409385]
[1742646150024,9.62137738,1998.1,1998.0,31.41409385]
[1742646150623,9.6213796,1998.1,1998.0,31.41409385]
[1742646151122,9.55881637,1998.1,1998.0,31.41409385]
[1742646151516,8.73651637,1998.1,1998.0,31.41409385]
[1742646151819,9.55881637,1998.1,1998.0,31.41409385]
[1742646152725,9.62138145,1998.1,1998.0,31.41409385]
[1742646152896,9.55881637,1998.1,1998.0,4.95109385]
[1742646153198,9.62138162,1998.1,1998.0,4.95109385]
[1742646153392,9.55881637,1998.1,1998.0,0.31509385]
[1742646154825,12.55881637,1998.1,1998.0,0.31509385]
[1742646164799,18.65881637,1998.1,1998.0,0.31509385]
[1742646165527,20.94816869,1998.1,1998.0,0.31509385]
[1742646169462,21.49816869,1998.1,1998.0,7.84e-06]
[1742646169751,8.75665,1997.7,1997.6,26.459]
[1742646170044,12.42222632,1997.7,1997.6,26.72524954]
[1742646170621,18.52222632,1997.7,1997.6,26.72524954]
[1742646172114,18.52222632,1997.7,1997.6,0.26624954]
[1742646182216,20.81157864,1997.7,1997.6,0.26624954]
[1742646183920,18.52222632,1997.7,1997.6,0.26624954]
[1742646186761,20.81157864,1997.7,1997.6,0.26624954]
[1742646187119,18.52222632,1997.7,1997.6,0.26624954]
[1742646191466,5.007,1997.2,1997.1,0.8073]
[1742646191627,5.007,1997.2,1997.1,1.62062606]
[1742646193338,7.29635232,1997.2,1997.1,1.62062606]
[1742646194059,7.29635232,1997.2,1997.1,1.07679606]
[1742646194230,7.29635232,1997.2,1997.1,0.26949606]
[1742646197577,5.007,1997.2,1997.1,0.26949606]
[1742646198477,7.29635232,1997.2,1997.1,0.26949606]
[1742646204585,3.0,1997.3,1997.1,0.26949606]
[1742646204786,8.00607,1997.6,1997.4,0.7931]
[1742646204987,5.006,1997.6,1997.4,5.4241]
[1742646205188,6.1,1997.7,1997.5,0.26830923]
[1742646205491,14.10586,1997.7,1997.6,0.7931]
[1742646208890,8.00586,1997.7,1997.6,0.86098971]
[1742646210096,11.82331845,1997.7,1997.6,0.06788971]
[1742646215196,13.5876723,1997.7,1997.6,0.06788971]
[1742646217400,18.21983075,1997.7,1997.6,0.26765993]
[1742646217602,14.4023723,1997.7,1997.6,0.26765993]
[1742646218302,18.21983075,1997.7,1997.6,0.26765993]
[1742646218505,14.4023723,1997.7,1997.6,0.26765993]
[1742646218799,18.21983075,1997.7,1997.6,0.26765993]
[1742646220606,24.31983075,1997.7,1997.6,0.26765993]
[1742646222026,25.33802422,1997.7,1997.6,0.26765993]
[1742646222203,25.88802422,1997.7,1997.6,9.93e-06]
[1742646222406,25.88802422,1997.7,1997.6,0.19132782]
[1742646222706,5.00726,1997.1,1997.0,31.1]
[1742646222906,8.82471845,1997.1,1997.0,31.1]
[1742646223376,5.00726,1997.1,1997.0,31.9124]
[1742646225911,5.00726,1997.1,1997.0,31.95825591]
[1742646229280,7.29908889,1997.1,1997.0,31.95825591]
[1742646229915,7.29908889,1997.1,1997.0,32.1564807]
[1742646230602,5.00726,1997.1,1997.0,32.1564807]
[1742646231420,5.00726,1997.1,1997.0,5.6874807]
[1742646232115,7.29908889,1997.1,1997.0,5.6874807]
[1742646235707,7.29908889,1997.1,1997.0,4.8750807]
[1742646237182,5.00726,1997.1,1997.0,4.8750807]
[1742646237718,5.00726,1997.1,1997.0,5.6350807]
[1742646240951,7.29908889,1997.1,1997.0,5.6350807]
[1742646241504,5.00726,1997.1,1997.0,5.6350807]
[1742646241910,7.29908889,1997.1,1997.0,4.8750807]
[1742646242506,7.29908889,1997.1,1997.0,0.2440807]
[1742646242707,8.59230463,1997.1,1997.0,0.2440807]
[1742646243114,11.59230463,1997.1,1997.0,0.2440807]
[1742646243314,11.52970678,1997.1,1997.0,0.2440807]
[1742646243726,12.30940678,1997.1,1997.0,0.2440807]
[1742646243909,18.40940678,1997.1,1997.0,0.2440807]
[1742646244223,20.70123567,1997.1,1997.0,0.2440807]
[1742646244751,5.78821,1996.6,1996.5,4.631]
[1742646244910,14.18003889,1996.6,1996.5,0.24694751]
[1742646245114,15.25969389,1996.6,1996.5,0.24694751]
[1742646246142,18.25969389,1996.6,1996.5,0.24694751]
[1742646247130,19.79152678,1996.6,1996.5,0.24694751]
[1742646256969,20.8081375,1996.6,1996.5,0.24694751]
[1742646258766,20.8081375,1996.6,1996.5,0.19908508]
[1742646258947,5.00976,1996.1,1996.0,5.396]
[1742646259147,11.10976,1996.1,1996.0,5.64646367]
[1742646267170,13.40406547,1996.1,1996.0,5.64646367]
[1742646267698,13.40406547,1996.1,1996.0,1.01046367]
[1742646271377,13.40406547,1996.1,1996.0,0.25046367]
[1742646271547,15.24543202,1996.1,1996.0,0.25046367]
[1742646277883,18.99583202,1996.1,1996.0,0.25046367]
[1742646280863,18.24543202,1996.1,1996.0,0.25046367]
[1742646290001,15.95112655,1996.1,1996.0,0.25046367]
[1742646290207,11.10976,1996.1,1996.0,0.25046367]
[1742646294574,13.40406547,1996.1,1996.0,0.25046367]
[1742646301215,11.10976,1996.1,1996.0,0.25046367]
[1742646310187,13.40406547,1996.1,1996.0,0.25046367]
[1742646310389,13.35406547,1996.1,1996.0,0.25046367]
[1742646312418,15.19043202,1996.1,1996.0,0.25046367]
[1742646313123,18.19043202,1996.1,1996.0,0.25046367]
[1742646315099,18.94833202,1996.1,1996.0,0.25046367]
[1742646321634,18.19043202,1996.1,1996.0,0.25046367]
[1742646322425,16.35406547,1996.1,1996.0,0.25046367]
[1742646325928,17.14926547,1996.1,1996.0,0.25046367]
[1742646331448,16.35406547,1996.1,1996.0,0.25046367]
[1742646333019,17.14926547,1996.1,1996.0,0.25046367]
[1742646350457,5.01127,1995.5,1995.4,5.4362]
[1742646350661,5.01127,1995.5,1995.4,6.23512843]
[1742646353492,5.01111,1995.6,1995.5,0.7843]
[1742646353666,5.01111,1995.6,1995.5,0.98733421]
[1742646354069,5.01111,1995.6,1995.5,1.03921269]
[1742646362126,7.36805774,1995.6,1995.5,0.25491269]
[1742646362932,7.30541547,1995.6,1995.5,0.25491269]
[1742646363439,10.30541547,1995.6,1995.5,0.25491269]
[1742646365211,11.91357302,1995.6,1995.5,0.25491269]
[1742646365415,14.20787849,1995.6,1995.5,0.25491269]
[1742646366031,20.30787849,1995.6,1995.5,0.25491269]
[1742646367349,21.07317849,1995.6,1995.5,0.25491269]
[1742646369857,21.07317849,1995.6,1995.0,4.635]
[1742646369858,5.01228,1995.1,1995.0,4.635]
[1742646370155,13.40658547,1995.1,1995.0,4.89219303]
[1742646371545,11.11228,1995.1,1995.0,4.89219303]
[1742646371716,11.11228,1995.1,1995.0,6.21810233]
[1742646371918,6.1,1995.1,1995.0,8.5124078]
[1742646372144,6.1,1995.1,1995.0,6.21810233]
[1742646373018,5.01212,1995.2,1995.0,5.45760233]
[1742646373223,5.01212,1995.2,1995.1,0.7605]
[1742646373424,5.01212,1995.2,1995.1,1.38231023]
[1742646373724,5.01212,1995.2,1995.1,1.43579625]
[1742646374251,5.01212,1995.2,1995.1,0.67529625]
[1742646374434,5.01212,1995.2,1995.1,1.43579625]
[1742646376537,11.11154,1995.4,1995.2,0.7605]
[1742646376864,11.11154,1995.4,1995.3,0.7605]
[1742646377066,11.11154,1995.4,1995.3,1.11866272]
[1742646377472,11.11154,1995.4,1995.3,0.81318217]
[1742646378968,5.01154,1995.4,1995.3,0.81318217]
[1742646380958,5.01154,1995.4,1995.3,0.05268217]
[1742646381493,5.01154,1995.4,1995.1,1.38231023]
[1742646381494,5.01185,1995.3,1995.1,1.38231023]
[1742646381888,5.01202,1995.2,1995.1,1.38231023]
[1742646382059,5.01202,1995.2,1995.1,5.3955]
[1742646382262,5.01202,1995.2,1995.1,5.5994135]
[1742646382601,5.01202,1995.2,1995.1,0.2039135]
[1742646382758,7.30632547,1995.2,1995.1,0.2039135]
[1742646382957,7.36897888,1995.2,1995.1,0.2039135]
[1742646383172,7.30632547,1995.2,1995.1,0.2039135]
[1742646384401,5.01202,1995.2,1995.1,0.2039135]
[1742646384859,11.11202,1995.2,1995.1,0.25739952]
[1742646387784,11.11202,1995.2,1995.1,1.05649952]
[1742646390008,6.1,1995.2,1995.1,1.05649952]
[1742646390506,6.1,1995.2,1995.1,6.33568549]
[1742646390700,5.01183,1995.3,1995.1,4.04138002]
[1742646393708,10.0238,1995.3,1995.1,4.04138002]
[1742646394014,5.01183,1995.3,1995.1,4.04138002]
[1742646394167,10.02375,1995.3,1995.1,1.05649952]
[1742646394585,5.01183,1995.3,1995.1,1.05649952]
[1742646395711,10.02379,1995.3,1995.1,1.05649952]
[1742646397320,5.01202,1995.2,1995.1,1.05649952]
[1742646397829,5.01202,1995.2,1995.1,3.81194947]
[1742646399230,5.01202,1995.2,1995.1,1.05649952]
[1742646399533,5.01202,1995.2,1995.1,0.25739952]
[1742646400029,5.01183,1995.3,1995.1,1.04359952]
[1742646400403,5.01154,1995.4,1995.1,6.05578952]
[1742646400730,5.01154,1995.4,1995.2,0.7862]
[1742646400931,5.01154,1995.4,1995.3,0.25648043]
[1742646402532,5.01154,1995.4,1995.3,4.89148043]
[1742646406528,5.01139,1995.5,1995.3,4.89148043]
[1742646408003,10.02286,1995.5,1995.3,4.89148043]
[1742646408204,5.01139,1995.5,1995.3,4.89148043]
[1742646409333,5.01152,1995.4,1995.3,4.89148043]
[1742646420553,5.01139,1995.5,1995.3,4.89148043]
[1742646420856,10.02286,1995.5,1995.3,4.89148043]
[1742646421974,5.01152,1995.4,1995.3,4.89148043]
[1742646425846,5.01139,1995.5,1995.3,4.89148043]
[1742646426046,10.02284,1995.5,1995.3,4.89148043]
[1742646426275,10.02278,1995.5,1995.3,4.89148043]
[1742646427775,5.01139,1995.5,1995.3,4.89148043]
[1742646431289,6.1,1995.9,1995.5,5.01106]
[1742646431494,11.1101,1996.0,1995.7,2.29558668]
[1742646431654,5.01028,1995.9,1995.7,7.69238668]
[1742646431859,6.1,1996.0,1995.8,2.29558668]
[1742646432393,6.1,1996.0,1995.8,7.30608668]
[1742646432693,11.11003,1996.0,1995.7,13.79973618]
[1742646432985,6.1,1996.0,1995.8,2.29558668]
[1742646433185,6.1,1996.0,1995.7,13.79973618]
[1742646433389,6.1,1996.0,1995.8,1.37997362]
[1742646433876,6.1,1996.0,1995.8,3.6755603]
[1742646434092,11.11005,1996.0,1995.8,3.6755603]
[1742646434281,11.11005,1996.0,1995.8,1.37997362]
[1742646434812,5.00982,1996.1,1995.8,1.37997362]
[1742646435292,5.00982,1996.1,1995.9,0.05027157]
[1742646435499,5.00953,1996.2,1995.9,0.05027157]
[1742646435791,5.00953,1996.2,1996.0,0.7628]
[1742646436089,5.00953,1996.2,1996.1,4.634]
[1742646436298,5.00953,1996.2,1996.1,4.68346836]
[1742646439488,8.11151668,1996.2,1996.1,0.04946836]
[1742646439689,11.11151668,1996.2,1996.1,0.04946836]
[1742646439896,5.01002,1996.0,1995.9,26.491]
[1742646442398,5.01002,1996.0,1995.9,26.69314374]
[1742646443188,11.10985,1996.1,1995.9,26.69314374]
[1742646443392,11.10985,1996.1,1995.9,26.74341531]
[1742646443997,16.11973,1996.1,1995.9,26.74341531]
[1742646444494,11.10985,1996.1,1995.9,27.52401531]
[1742646446375,5.00985,1996.1,1995.9,27.52401531]
[1742646447333,5.00985,1996.1,1995.9,30.27641684]
[1742646447608,5.01002,1996.0,1995.9,30.27641684]
[1742646447909,5.00985,1996.1,1995.9,30.27641684]
[1742646449610,5.01002,1996.0,1995.9,29.49581684]
[1742646450313,5.01002,1996.0,1995.9,31.37641531]
[1742646450681,5.01002,1996.0,1995.9,4.88541531]
[1742646451513,5.01002,1996.0,1995.9,0.25241531]
[1742646456519,5.00985,1996.1,1995.9,0.25241531]
[1742646457813,5.01002,1996.0,1995.9,0.25241531]
[1742646461095,5.76002,1996.0,1995.9,0.25241531]
[1742646464525,5.01002,1996.0,1995.9,0.25241531]
[1742646482825,11.10935,1996.3,1996.0,0.7514]
[1742646483024,5.00962,1996.2,1996.0,0.80149382]
[1742646483427,5.00962,1996.2,1996.1,0.25103657]
[1742646484017,11.10902,1996.4,1996.1,2.91303322]
[1742646484249,11.10902,1996.4,1996.2,4.92430332]
[1742646484555,11.10907,1996.4,1996.2,4.633]
[1742646486943,11.10907,1996.4,1996.3,0.04866531]
[1742646487144,5.00907,1996.4,1996.3,0.04866531]
[1742646487535,5.00907,1996.4,1996.3,0.2500605]
[1742646492853,5.00878,1996.5,1996.3,0.2500605]
[1742646493064,5.00878,1996.5,1996.3,0.82159655]
[1742646498159,8.81843,1996.6,1996.3,0.82159655]
[1742646498160,13.01725,1996.6,1996.3,0.82159655]
[1742646498366,5.00879,1996.5,1996.3,0.82159655]
[1742646503568,5.00879,1996.5,1996.3,27.30459655]
[1742646504082,10.01774,1996.5,1996.3,27.30459655]
[1742646505183,5.00901,1996.4,1996.3,27.30459655]
[1742646506361,5.00901,1996.4,1996.3,26.7330605]
[1742646513075,5.00901,1996.4,1996.3,0.2500605]
[1742646540708,4.00901,1996.4,1996.3,0.2500605]
[1742646541081,7.08827987,1996.4,1996.3,0.2500605]
[1742646541309,7.08827987,1996.4,1996.3,4.8810605]
[1742646541499,8.29798686,1996.4,1996.3,4.8810605]
[1742646542030,8.29798686,1996.4,1996.3,0.2500605]
[1742646542408,11.36060243,1996.4,1996.3,0.2500605]
[1742646542627,11.29798686,1996.4,1996.3,0.2500605]
[1742646564462,9.30347987,1996.4,1996.3,0.2500605]
[1742646565835,4.00901,1996.4,1996.3,0.2500605]
[1742646566157,7.00901,1996.4,1996.3,0.2500605]
[1742646569860,4.00901,1996.4,1996.3,0.2500605]
[1742646571156,5.00901,1996.4,1996.3,0.2500605]
[1742646571364,5.00901,1996.4,1996.3,0.81596655]
[1742646587573,11.15329351,1996.4,1996.3,0.2500605]
[1742646587773,13.38514974,1996.4,1996.3,0.2500605]
[1742646587973,5.01102,1995.6,1995.5,26.484]
[1742646588274,5.01102,1995.6,1995.5,4.84288596]
[1742646588452,5.01102,1995.6,1995.5,0.21288596]
[1742646588858,7.30548987,1995.6,1995.5,0.21288596]
[1742646589461,10.30548987,1995.6,1995.5,0.21288596]
[1742646592279,11.83712486,1995.6,1995.5,0.21288596]
[1742646592479,12.62432486,1995.6,1995.5,0.21288596]
[1742646592679,14.91879473,1995.6,1995.5,0.21288596]
[1742646594084,12.62432486,1995.6,1995.5,0.21288596]
[1742646594493,14.91879473,1995.6,1995.5,0.21288596]
[1742646595585,12.62432486,1995.6,1995.5,0.21288596]
[1742646595884,11.09268987,1995.6,1995.5,0.21288596]
[1742646596192,10.30548987,1995.6,1995.5,0.21288596]
[1742646596886,8.01102,1995.6,1995.5,0.21288596]
[1742646597255,10.30548987,1995.6,1995.5,0.21288596]
[1742646597589,8.01102,1995.6,1995.5,0.21288596]
[1742646598785,10.30548987,1995.6,1995.5,0.21288596]
[1742646599356,11.83712486,1995.6,1995.5,0.21288596]
[1742646600990,10.30548987,1995.6,1995.5,0.21288596]
[1742646601481,8.01102,1995.6,1995.5,0.21288596]
[1742646601681,10.30548987,1995.6,1995.5,0.21288596]
[1742646605693,11.13838987,1995.6,1995.5,0.21288596]
[1742646605863,13.43285974,1995.6,1995.5,0.21288596]
[1742646606420,12.98276184,1995.6,1995.5,0.21288596]
[1742646609194,15.27723171,1995.6,1995.5,0.21288596]
[1742646609394,12.98276184,1995.6,1995.5,0.21288596]
[1742646611006,10.68829197,1995.6,1995.5,0.21288596]
[1742646611308,8.01102,1995.6,1995.5,0.21288596]
[1742646611809,10.30548987,1995.6,1995.5,0.21288596]
[1742646613462,5.01102,1995.6,1995.5,0.21288596]
[1742646613666,5.01102,1995.6,1995.5,0.96938596]
[1742646615599,5.01102,1995.6,1995.5,5.60138596]
[1742646617391,5.01102,1995.6,1995.5,5.3885]
[1742646617690,5.01102,1995.6,1995.5,5.58730134]
[1742646619475,5.01102,1995.6,1995.5,4.83080134]
[1742646620185,7.30548987,1995.6,1995.5,4.83080134]
[1742646621311,5.01102,1995.6,1995.5,4.83080134]
[1742646624111,7.30548987,1995.6,1995.5,4.83080134]
[1742646624821,5.01102,1995.6,1995.5,4.83080134]
[1742646626219,7.30548987,1995.6,1995.5,4.83080134]
[1742646627725,7.36812942,1995.6,1995.5,4.83080134]
[1742646627882,7.30548987,1995.6,1995.5,4.83080134]
[1742646628611,7.36813029,1995.6,1995.5,4.83080134]
[1742646629122,7.30548987,1995.6,1995.5,4.83080134]
[1742646629509,10.30548987,1995.6,1995.5,4.83080134]
[1742646630812,11.83712486,1995.6,1995.5,4.83080134]
[1742646631438,8.01102,1995.6,1995.5,4.83080134]
[1742646632330,10.30548987,1995.6,1995.5,4.83080134]
[1742646637105,10.30548987,1995.6,1995.5,0.19880134]
[1742646642235,8.01102,1995.6,1995.5,0.19880134]
[1742646644108,10.30548987,1995.6,1995.5,0.19880134]
[1742646645232,11.83712486,1995.6,1995.5,0.19880134]
[1742646645441,9.54265499,1995.6,1995.5,0.19880134]
[1742646647639,11.89976725,1995.6,1995.5,0.19880134]
[1742646647813,11.83712486,1995.6,1995.5,0.19880134]
[1742646652345,9.54265499,1995.6,1995.5,0.19880134]
[1742646656111,11.89976949,1995.6,1995.5,0.19880134]
[1742646656418,14.93829473,1995.6,1995.5,0.19880134]
[1742646659918,5.01228,1995.1,1995.0,4.632]
[1742646660120,5.01228,1995.1,1995.0,4.83332495]
[1742646668155,5.01209,1995.2,1995.1,0.7887]
[1742646668333,5.01209,1995.2,1995.1,0.98994191]
[1742646676445,5.01209,1995.2,1995.1,0.20124191]
[1742646684796,5.01209,1995.2,1995.1,1.00264191]
[1742646687681,10.02323,1995.4,1995.1,1.00264191]
[1742646687988,5.01153,1995.4,1995.1,3.29711178]
[1742646688173,5.01182,1995.3,1995.1,3.29711178]
[1742646688485,5.01182,1995.3,1995.1,4.59125596]
[1742646689655,5.01182,1995.3,1995.1,2.29678609]
[1742646690506,5.01202,1995.2,1995.1,2.29678609]
[1742646690985,5.01182,1995.3,1995.1,2.29678609]
[1742646691185,5.01182,1995.3,1995.1,4.59125596]
[1742646693304,5.01153,1995.4,1995.2,2.75359547]
[1742646693602,5.01153,1995.4,1995.3,0.8014]
[1742646693795,5.01135,1995.5,1995.3,0.8014]
[1742646693976,5.01135,1995.5,1995.4,4.632]
[1742646695207,5.01135,1995.5,1995.4,4.7889279]
[1742646697075,5.01135,1995.5,1995.4,4.83147514]
[1742646701379,6.24304799,1995.5,1995.4,4.83147514]
[1742646702706,6.24304799,1995.5,1995.4,0.19947514]
[1742646702914,6.24304799,1995.5,1995.4,4.83047514]
[1742646704716,8.53751786,1995.5,1995.4,4.83047514]
[1742646704882,6.24304799,1995.5,1995.4,4.83047514]
[1742646709392,8.53751786,1995.5,1995.4,4.83047514]
[1742646710164,8.53751786,1995.5,1995.4,0.19947514]
[1742646710421,12.42856312,1995.5,1995.4,0.19947514]
[1742646710607,12.36591786,1995.5,1995.4,0.19947514]
[1742646719332,12.61880683,1995.5,1995.4,0.19947514]
[1742646719534,12.36591786,1995.5,1995.4,0.19947514]
[1742646722734,13.38981069,1995.5,1995.4,0.19947514]
[1742646723233,12.36591786,1995.5,1995.4,0.19947514]
[1742646727136,5.01328,1994.7,1994.6,31.132]
[1742646727345,10.30774987,1994.7,1994.6,31.132]
[1742646727521,10.30774987,1994.7,1994.6,31.31943373]
[1742646729945,8.01328,1994.7,1994.6,31.31943373]
[1742646730247,8.01328,1994.7,1994.6,32.14373373]
[1742646730953,5.01312,1994.8,1994.6,35.3581071]
[1742646731454,5.01255,1995.0,1994.7,0.8243]
[1742646731754,8.01255,1995.0,1994.9,0.8243]
[1742646732116,8.01255,1995.0,1994.9,0.86034855]
[1742646733730,10.30701987,1995.0,1994.9,0.86034855]
[1742646734211,8.01255,1995.0,1994.9,0.86034855]
[1742646734419,8.01255,1995.0,1994.9,1.01075436]
[1742646736964,5.01255,1995.0,1994.9,1.01075436]
[1742646737517,5.29446987,1995.2,1994.9,1.01075436]
[1742646737518,5.01212,1995.2,1994.9,1.01075436]
[1742646737745,5.01238,1995.1,1994.9,1.6131228]
[1742646738064,5.01238,1995.1,1994.9,1.01075436]
[1742646738263,10.02485,1995.1,1994.9,1.01075436]
[1742646739548,5.01238,1995.1,1994.9,1.01075436]
[1742646739748,10.02485,1995.1,1995.0,4.632]
[1742646740175,10.02485,1995.1,1995.0,4.81816272]
[1742646741148,12.31931987,1995.1,1995.0,4.81816272]
[1742646742183,12.31931987,1995.1,1995.0,0.18616272]
[1742646742326,13.62643186,1995.1,1995.0,0.18616272]
[1742646742526,12.31931987,1995.1,1995.0,0.18616272]
[1742646748673,15.31931987,1995.1,1995.0,0.18616272]
[1742646753980,16.11321987,1995.1,1995.0,0.18616272]
[1742646760686,5.01328,1994.7,1994.6,4.632]
[1742646760985,5.01328,1994.7,1994.6,4.82021034]
[1742646761385,5.01328,1994.7,1994.6,0.13821034]
[1742646761689,5.01328,1994.7,1994.6,0.16801424]
[1742646761985,7.30774987,1994.7,1994.6,0.16801424]
[1742646762295,11.60250551,1994.7,1994.6,0.16801424]
[1742646762449,11.53983686,1994.7,1994.6,0.16801424]
[1742646763876,10.30774987,1994.7,1994.6,0.16801424]
[1742646772660,11.09984987,1994.7,1994.6,0.16801424]
[1742646772869,8.01328,1994.7,1994.6,0.16801424]
[1742646773074,8.01328,1994.7,1994.6,0.99921424]
[1742646780704,8.01328,1994.7,1994.6,0.16801424]
[1742646784512,10.30774987,1994.7,1994.6,0.16801424]
[1742646784818,11.83983686,1994.7,1994.6,0.16801424]
[1742646786047,12.63763686,1994.7,1994.6,0.16801424]
[1742646788652,11.83983686,1994.7,1994.6,0.16801424]
[1742646798459,12.63163686,1994.7,1994.6,0.16801424]
[1742646800647,11.83983686,1994.7,1994.6,0.16801424]
[1742646802376,10.30774987,1994.7,1994.6,0.16801424]
[1742646805263,11.06484987,1994.7,1994.6,0.16801424]
[1742646806892,10.30774987,1994.7,1994.6,0.16801424]
[1742646807414,8.01328,1994.7,1994.6,0.16801424]
[1742646807587,10.30774987,1994.7,1994.6,0.16801424]
[1742646808966,8.01328,1994.7,1994.6,0.16801424]
[1742646809169,8.01328,1994.7,1994.6,0.97191424]
[1742646815508,9.54536699,1994.7,1994.6,0.16801424]
[1742646815671,11.83983686,1994.7,1994.6,0.16801424]
[1742646816274,10.30774987,1994.7,1994.6,0.16801424]
[1742646816576,8.01328,1994.7,1994.6,0.16801424]
[1742646818507,8.01328,1994.7,1994.6,0.97191424]
[1742646822831,8.01328,1994.7,1994.6,0.16801424]
[1742646824809,10.30774987,1994.7,1994.6,0.16801424]
[1742646824996,11.83983686,1994.7,1994.6,0.16801424]
[1742646825202,12.59353686,1994.7,1994.6,0.16801424]
[1742646828283,13.14353686,1994.7,1994.6,0.16801424]
[1742646836327,12.59353686,1994.7,1994.6,0.16801424]
[1742646842521,13.14353686,1994.7,1994.6,0.16801424]
[1742646853743,15.51570673,1994.7,1994.6,0.16801424]
[1742646854366,15.51570673,1994.7,1994.6,4.24e-06]
[1742646854670,5.01504,1994.0,1993.9,31.9692]
[1742646857977,5.01504,1994.0,1993.9,31.99586014]
[1742646859556,5.01504,1994.0,1993.9,27.36386014]
[1742646861488,5.01504,1994.0,1993.9,0.85386014]
[1742646862091,5.01504,1994.0,1993.9,0.99980414]
[1742646864552,5.01504,1994.0,1993.9,0.17260414]
[1742646864755,7.30950987,1994.0,1993.9,0.17260414]
[1742646865392,10.3722022,1994.0,1993.9,0.17260414]
[1742646865579,10.30950987,1994.0,1993.9,0.17260414]
[1742646865891,11.84194886,1994.0,1993.9,0.17260414]
[1742646879904,12.60534886,1994.0,1993.9,0.17260414]
[1742646887522,13.15534886,1994.0,1993.9,0.17260414]
[1742646889609,15.44981873,1994.0,1993.9,0.17260414]
[1742646890405,13.15534886,1994.0,1993.9,0.17260414]
[1742646893233,14.13907235,1994.0,1993.9,0.17260414]
[1742646895034,16.43354222,1994.0,1993.9,0.17260414]
[1742646896317,16.43354222,1994.0,1993.9,4.14e-06]
[1742646896518,16.43354222,1994.0,1993.9,0.15993772]
[1742646896721,8.0163,1993.5,1993.4,0.7973]
[1742646897405,5.01605,1993.6,1993.5,0.7973]
[1742646899839,5.01605,1993.6,1993.5,0.82023824]
[1742646900204,7.31051987,1993.6,1993.5,0.82023824]
[1742646901038,10.31051987,1993.6,1993.5,0.02293824]
[1742646901205,10.31051987,1993.6,1993.3,31.9493]
[1742646901206,8.01655,1993.4,1993.3,27.3153]
[1742646901406,8.01655,1993.4,1993.3,27.33904355]
[1742646901633,10.31101987,1993.4,1993.3,27.33904355]
[1742646902015,8.01655,1993.4,1993.3,27.33904355]
[1742646903916,8.01655,1993.4,1993.3,27.47847537]
[1742646904117,10.31101987,1993.4,1993.3,27.47847537]
[1742646905339,10.31101987,1993.4,1993.3,26.68117537]
[1742646907341,8.01655,1993.4,1993.3,26.68117537]
[1742646907743,10.31101987,1993.4,1993.3,26.68117537]
[1742646908047,8.01655,1993.4,1993.3,26.68117537]
[1742646908338,10.31101987,1993.4,1993.3,26.68117537]
[1742646909320,10.31101987,1993.4,1993.3,0.16317537]
[1742646913241,11.84376086,1993.4,1993.3,0.16317537]
[1742646920566,8.01655,1993.4,1993.3,0.16317537]
[1742646921261,10.31101987,1993.4,1993.3,0.16317537]
[1742646921439,8.01655,1993.4,1993.3,0.16317537]
[1742646922872,10.31101987,1993.4,1993.3,0.16317537]
[1742646931775,10.31101987,1993.4,1993.3,0.40465152]
[1742646933974,3.0,1993.4,1993.3,0.40465152]
[1742646934147,8.01655,1993.4,1993.3,1.16025152]
[1742646942088,5.01607,1993.6,1993.4,0.7537]
[1742646942387,5.01582,1993.7,1993.4,0.7537]
[1742646942596,5.01605,1993.6,1993.5,0.40366008]
[1742646943190,5.01605,1993.6,1993.5,1.15736008]
[1742646944573,5.01605,1993.6,1993.5,5.79136008]
[1742646957002,5.01605,1993.6,1993.5,0.40366008]
[1742646957508,7.31051987,1993.6,1993.5,0.40366008]
[1742646958020,5.01605,1993.6,1993.5,0.40366008]
[1742646959326,5.01605,1993.6,1993.5,1.16856008]
[1742646963630,10.03187,1993.7,1993.5,1.16856008]
[1742646963843,5.01605,1993.6,1993.5,0.40366008]
[1742646964214,5.01582,1993.7,1993.5,1.16386008]
[1742646964422,5.01605,1993.6,1993.5,1.16386008]
[1742646968594,5.01605,1993.6,1993.5,0.40366008]
[1742646969795,7.31051987,1993.6,1993.5,0.40366008]
[1742646970014,8.61838386,1993.6,1993.5,0.40366008]
[1742646971103,6.32391399,1993.6,1993.5,0.40366008]
[1742646973325,8.61838386,1993.6,1993.5,0.40366008]
[1742646975993,9.37068386,1993.6,1993.5,0.40366008]
[1742646976413,9.43339121,1993.6,1993.5,0.40366008]
[1742646976821,9.37068386,1993.6,1993.5,0.40366008]
[1742646978520,12.37068386,1993.6,1993.5,0.40366008]
[1742646979123,12.92068386,1993.6,1993.5,0.40366008]
[1742646979730,12.92068386,1993.6,1993.5,8e-08]
[1742646979931,5.7696,1993.1,1993.0,4.639]
[1742646980115,5.0181,1992.8,1992.7,4.64]
[1742646980321,5.0181,1992.8,1992.7,4.99249708]
[1742646981224,5.01785,1992.9,1992.7,7.28696695]
[1742646981416,5.01734,1993.1,1992.8,3.11826987]
[1742646981617,5.01765,1993.0,1992.8,3.11826987]
[1742646981818,5.01765,1993.0,1992.9,0.35229923]
[1742646982129,5.01765,1993.0,1992.8,3.11826987]
[1742646982427,5.01765,1993.0,1992.9,0.35229923]
[1742646982799,5.01765,1993.0,1992.8,3.97520453]
[1742646983120,5.01765,1993.0,1992.9,0.35229923]
[1742646983291,5.01765,1993.0,1992.8,1.68073466]
[1742646983496,5.01765,1993.0,1992.9,0.35276365]
[1742646983715,5.01765,1993.0,1992.8,1.68073466]
[1742646984031,5.01765,1993.0,1992.9,0.35276365]
[1742646984532,5.01781,1992.9,1992.8,0.8238]
[1742646985231,10.0358,1992.9,1992.7,5.4510767]
[1742646985601,5.01781,1992.9,1992.7,5.4510767]
[1742646985798,5.01758,1993.0,1992.8,1.33360767]
[1742646986006,5.01731,1993.1,1992.8,1.33360767]
[1742646986210,10.0348,1993.1,1992.8,1.33360767]